bitfinex/quotes_SOLUSD_20260109
["timestamp","ask_amount","ask_price","bid_price","bid_amount"]
[1767949587550,3.50041499,138.55,138.51,20.70578725]
[1767949587751,11.39617434,138.56,138.51,20.70578725]
[1767949588673,11.39617434,138.56,138.51,13.48627343]
[1767949589250,3.50041499,138.55,138.51,13.48627343]
[1767949589450,3.50041499,138.54,138.51,12.78691036]
[1767949589690,0.11059247,138.55,138.51,12.78691036]
[1767949589691,0.11059247,138.55,138.51,13.48627343]
[1767949589973,3.61100746,138.55,138.51,13.48627343]
[1767949590596,2.35413664,138.55,138.51,13.48627343]
[1767949591084,9.57193891,138.55,138.51,13.48627343]
[1767949591678,9.57193891,138.55,138.47,31.21401261]
[1767949591679,7.32839474,138.55,138.47,11.02247872]
[1767949591981,2.24354417,138.54,138.48,2.94290724]
[1767949592178,2.24354417,138.6,138.48,2.94290724]
[1767949592179,2.24354417,138.6,138.5,2.94290724]
[1767949592385,2.24354417,138.56,138.5,2.94290724]
[1767949592579,2.24354417,138.56,138.5,0.69936307]
[1767949592786,2.24354417,138.56,138.5,10.16290293]
[1767949593154,7.2173207,138.56,138.5,10.16290293]
[1767949593379,13.16,138.59,138.5,7.91935876]
[1767949593554,13.16,138.59,138.5,0.69936307]
[1767949593555,2.24354417,138.54,138.5,0.69936307]
[1767949594695,2.24354417,138.53,138.49,0.67158197]
[1767949594985,2.24354417,138.53,138.49,7.89226449]
[1767949595288,2.24354417,138.5,138.47,0.67158197]
[1767949596279,38.42539254,138.53,138.47,0.67158197]
[1767949596581,2.24354417,138.5,138.47,0.67158197]
[1767949597297,7.21991494,138.51,138.47,0.67158197]
[1767949597593,2.24354417,138.5,138.47,0.67158197]
[1767949598396,7.21991494,138.51,138.42,0.2]
[1767949598397,2.81512614,138.48,138.42,0.2]
[1767949598706,2.24354417,138.49,138.44,7.22302716]
[1767949599005,2.81512614,138.5,138.45,7.22250422]
[1767949599566,10.03549221,138.5,138.45,7.22250422]
[1767949600100,7.31892201,138.51,138.45,9.46604839]
[1767949600271,2.24354417,138.5,138.45,9.46604839]
[1767949600606,2.24354417,138.46,138.43,0.67158197]
[1767949600967,2.24354417,138.45,138.42,13.36]
[1767949601370,9.46614339,138.46,138.42,14.03158197]
[1767949601898,9.46614339,138.46,138.4,0.2]
[1767949602094,2.24354417,138.41,138.4,0.2]
[1767949602292,2.24354417,138.41,138.37,13.36]
[1767949602505,2.24354417,138.4,138.37,13.36]
[1767949603292,2.24354417,138.42,138.37,21.25844246]
[1767949603692,2.24354417,138.41,138.37,14.03158197]
[1767949603898,7.32339047,138.42,138.37,14.03158197]
[1767949604099,2.24354417,138.41,138.37,14.03158197]
[1767949604692,2.34254417,138.42,138.38,0.67158197]
[1767949605699,9.56701363,138.42,138.38,0.67158197]
[1767949606085,2.24354417,138.41,138.38,0.67158197]
[1767949606413,2.24354417,138.41,138.37,13.36]
[1767949606600,2.24354417,138.41,138.37,14.03158197]
[1767949607013,2.24354417,138.4,138.37,14.03158197]
[1767949607495,2.24354417,138.41,138.37,21.25855333]
[1767949607816,7.32301678,138.43,138.38,0.67939911]
[1767949608017,2.24354417,138.42,138.38,0.67939911]
[1767949609300,7.32301678,138.43,138.38,0.67939911]
[1767949609715,2.24354417,138.42,138.38,0.67939911]
[1767949610523,2.24354417,138.44,138.39,2.92294328]
[1767949610695,2.24354417,138.44,138.4,13.85939911]
[1767949611095,2.34254417,138.44,138.4,13.85939911]
[1767949611521,0.099,138.46,138.41,0.67939911]
[1767949611695,2.34254417,138.46,138.42,0.67939911]
[1767949612319,2.24354417,138.44,138.4,13.85939911]
[1767949614106,2.24354417,138.44,138.4,21.08481573]
[1767949614804,9.92962618,138.45,138.4,21.08481573]
[1767949615815,9.92962618,138.45,138.4,23.3283599]
[1767949616319,0.099,138.45,138.4,13.85939911]
[1767949616514,2.24354417,138.44,138.4,13.85939911]
[1767949616715,2.70672175,138.44,138.4,13.18]
[1767949616929,0.10264178,138.43,138.4,13.18]
[1767949617101,2.60311639,138.41,138.37,0.87939911]
[1767949617300,0.35957222,138.41,138.37,0.2]
[1767949617502,2.60311639,138.41,138.37,0.2]
[1767949618137,0.32957223,138.41,138.37,10.34983798]
[1767949618318,7.22438953,138.42,138.38,2.24354417]
[1767949618623,9.4679337,138.42,138.37,3.12294328]
[1767949618932,7.22438953,138.42,138.38,2.92294328]
[1767949619711,2.24354417,138.44,138.4,0.67939911]
[1767949620315,9.79613914,138.45,138.4,2.92294328]
[1767949621018,7.55259497,138.45,138.41,2.92294328]
[1767949621326,7.22302274,138.45,138.42,0.67939911]
[1767949621527,2.24354417,138.46,138.42,0.67939911]
[1767949621528,7.22249613,138.46,138.42,0.67939911]
[1767949621729,7.22249613,138.46,138.42,2.92294328]
[1767949621933,9.79509747,138.47,138.42,2.92294328]
[1767949622111,7.22198107,138.47,138.43,0.67939911]
[1767949622301,9.46552524,138.47,138.43,0.67939911]
[1767949622705,7.22198107,138.47,138.43,0.67939911]
[1767949622925,9.46552524,138.47,138.43,0.67939911]
[1767949624108,7.22198107,138.47,138.43,0.67939911]
[1767949624303,9.46552524,138.47,138.43,0.67939911]
[1767949624718,9.79279174,138.47,138.43,0.67939911]
[1767949624917,9.79279174,138.47,138.42,0.69800604]
[1767949625118,9.79279174,138.47,138.42,2.94155021]
[1767949625807,9.79279174,138.47,138.42,0.69800604]
[1767949626013,2.24354417,138.46,138.42,0.69800604]
[1767949626214,9.46604866,138.46,138.42,0.69800604]
[1767949627638,2.24354417,138.45,138.42,0.69800604]
[1767949628323,9.56733133,138.46,138.42,0.69800604]
[1767949629725,7.32378716,138.46,138.42,0.69800604]
[1767949630142,9.56733133,138.46,138.42,0.69800604]
[1767949630726,0.32500666,138.45,138.41,0.69800604]
[1767949630932,2.24354417,138.44,138.4,0.69800604]
[1767949631138,2.24354417,138.43,138.4,0.69800604]
[1767949631521,0.10351991,138.44,138.39,0.69800604]
[1767949631841,2.34706408,138.44,138.4,0.69800604]
[1767949632521,9.57058906,138.44,138.4,0.69800604]
[1767949633422,7.32704489,138.44,138.4,0.69800604]
[1767949633742,9.46706915,138.44,138.4,0.69800604]
[1767949634345,9.79433565,138.44,138.4,0.69800604]
[1767949635241,22.97433565,138.44,138.4,0.69800604]
[1767949635441,22.97433565,138.44,138.38,0.69800604]
[1767949635442,2.24354417,138.41,138.38,0.69800604]
[1767949636030,2.24354417,138.41,138.37,0.89800604]
[1767949636031,15.52706408,138.41,138.37,0.89800604]
[1767949636337,15.42354417,138.41,138.37,0.89800604]
[1767949636844,2.24354417,138.41,138.37,0.89800604]
[1767949637032,7.22459937,138.42,138.38,0.69800604]
[1767949637344,13.18,138.41,138.38,0.69800604]
[1767949639024,13.18,138.42,138.39,0.69800604]
[1767949639225,2.24354417,138.44,138.39,0.69800604]
[1767949639226,9.4671673,138.44,138.39,0.69800604]
[1767949639421,13.18,138.43,138.4,0.69800604]
[1767949641442,13.18,138.43,138.39,7.22570734]
[1767949641645,20.73136594,138.43,138.38,10.16795121]
[1767949641833,22.97491011,138.43,138.38,10.16795121]
[1767949642238,7.55136594,138.43,138.38,10.16795121]
[1767949642435,22.97491011,138.43,138.39,0.69800604]
[1767949642952,22.64764361,138.43,138.39,0.69800604]
[1767949643263,20.40409944,138.43,138.39,0.69800604]
[1767949644658,20.40409944,138.43,138.38,9.46994517]
[1767949644659,0.099,138.42,138.38,0.69800604]
[1767949644836,9.46764361,138.43,138.38,7.92447152]
[1767949645156,20.40409944,138.43,138.39,0.69800604]
[1767949645452,22.64764361,138.43,138.39,0.69800604]
[1767949645745,2.24354417,138.42,138.39,0.69800604]
[1767949646238,20.50309944,138.43,138.39,0.69800604]
[1767949646444,2.24354417,138.42,138.39,0.69800604]
[1767949650132,2.24354417,138.41,138.39,0.69800604]
[1767949650551,3.51224038,138.4,138.37,0.2]
[1767949650750,3.51224038,138.38,138.37,0.89800604]
[1767949650935,13.18,138.4,138.35,0.89800604]
[1767949651258,3.51224038,138.38,138.35,0.89800604]
[1767949652037,3.51224038,138.38,138.35,8.12598972]
[1767949652356,103.1,138.45,138.36,0.69800604]
[1767949652357,0.12957223,138.44,138.36,0.69800604]
[1767949652563,3.51224038,138.42,138.37,0.69800604]
[1767949652742,3.51224038,138.41,138.37,0.69800604]
[1767949652935,20.40386765,138.43,138.37,0.69800604]
[1767949652936,13.18,138.43,138.37,0.69800604]
[1767949653155,3.51224038,138.44,138.39,0.71821567]
[1767949653361,13.30957223,138.45,138.39,0.71821567]
[1767949653658,3.51224038,138.44,138.39,0.71821567]
[1767949654262,3.51224038,138.44,138.39,7.94394274]
[1767949654562,3.51224038,138.44,138.4,0.71821567]
[1767949654764,3.51224038,138.43,138.4,0.71821567]
[1767949655264,7.22336907,138.44,138.4,0.71821567]
[1767949655450,10.73560945,138.44,138.4,0.71821567]
[1767949655652,3.51224038,138.43,138.39,7.22572707]
[1767949656144,3.51224038,138.43,138.39,0.71821567]
[1767949658058,3.51224038,138.43,138.39,7.94414445]
[1767949658265,3.51224038,138.43,138.4,0.71821567]
[1767949658762,3.51224038,138.42,138.4,0.71821567]
[1767949660662,3.51224038,138.43,138.4,0.71821567]
[1767949662358,20.40336907,138.44,138.4,0.71821567]
[1767949662556,3.51224038,138.43,138.4,7.9435387]
[1767949662856,0.09959931,138.42,138.39,7.22571017]
[1767949663058,0.06959932,138.42,138.39,7.22571017]
[1767949663564,3.51224038,138.43,138.39,7.22571017]
[1767949663751,3.51224038,138.45,138.41,0.71821567]
[1767949664750,3.51224038,138.45,138.42,0.71821567]
[1767949665774,16.69224038,138.46,138.42,0.71821567]
[1767949666470,3.51224038,138.45,138.42,0.71821567]
[1767949667269,0.09900567,138.44,138.41,7.22452739]
[1767949668458,3.51224038,138.45,138.42,0.69903793]
[1767949669269,20.40233545,138.46,138.42,0.69903793]
[1767949669449,23.91457583,138.46,138.42,0.69903793]
[1767949669652,3.51224038,138.45,138.42,0.69903793]
[1767949671170,0.69757886,138.48,138.44,0.69903793]
[1767949671378,4.20981924,138.48,138.44,0.69903793]
[1767949671674,0.69757886,138.47,138.43,3.51224038]
[1767949671869,0.69757886,138.47,138.44,3.51224038]
[1767949672074,0.69757886,138.5,138.45,3.51224038]
[1767949672267,0.69757886,138.5,138.46,3.51224038]
[1767949672959,0.69757886,138.5,138.44,0.62542776]
[1767949673171,0.69757886,138.5,138.46,4.13766814]
[1767949673363,0.69757886,138.5,138.46,0.62542776]
[1767949673763,4.20981924,138.5,138.46,7.84769757]
[1767949676478,0.69757886,138.5,138.46,7.84769757]
[1767949676875,0.69757886,138.5,138.46,11.35993795]
[1767949679574,0.69757886,138.5,138.46,7.84769757]
[1767949680055,0.69757886,138.5,138.46,11.35993795]
[1767949680570,0.69757886,138.5,138.46,7.84769757]
[1767949680758,0.69757886,138.5,138.46,11.35993795]
[1767949680962,0.69757886,138.49,138.45,7.84806456]
[1767949681187,0.69757886,138.48,138.45,7.2226368]
[1767949681360,0.69757886,138.47,138.43,4.13766814]
[1767949681565,4.20981924,138.47,138.43,7.84905872]
[1767949681980,4.20981924,138.45,138.41,0.62542776]
[1767949682166,0.69757886,138.45,138.41,7.8500407]
[1767949682366,0.69757886,138.45,138.41,11.36228108]
[1767949682682,4.20981924,138.46,138.42,0.62542776]
[1767949683263,4.20981924,138.46,138.42,7.84979919]
[1767949683667,0.68182655,138.45,138.42,7.22437143]
[1767949683866,0.68182655,138.45,138.4,0.62542776]
[1767949683867,0.68182655,138.44,138.4,0.62542776]
[1767949684363,0.68182655,138.47,138.43,4.13766814]
[1767949684575,7.22081446,138.49,138.44,4.13766814]
[1767949684576,0.68182655,138.49,138.44,4.13766814]
[1767949684776,0.68182655,138.49,138.45,3.51224038]
[1767949685170,11.41400274,138.51,138.46,11.35947045]
[1767949686067,0.68182655,138.5,138.46,11.35947045]
[1767949687093,0.68182655,138.52,138.47,4.13766814]
[1767949687293,0.68182655,138.52,138.48,4.13766814]
[1767949687483,4.19406693,138.54,138.49,0.62542776]
[1767949687684,0.68182655,138.53,138.49,0.56542776]
[1767949688108,4.19406693,138.53,138.48,3.51224038]
[1767949691621,0.68182655,138.52,138.48,10.73323045]
[1767949691785,7.90019272,138.54,138.49,4.21834698]
[1767949691979,0.67800546,138.55,138.51,4.21834698]
[1767949692286,0.67800546,138.55,138.49,0.99042974]
[1767949692497,0.67800546,138.55,138.5,3.51224038]
[1767949693285,0.67800546,138.55,138.51,7.21969532]
[1767949694196,0.30350111,138.54,138.48,18.75925506]
[1767949694392,0.30350111,138.54,138.49,10.73249904]
[1767949694803,10.72998535,138.55,138.49,3.51224038]
[1767949694804,0.67426041,138.53,138.49,3.51224038]
[1767949694996,7.89957152,138.55,138.5,7.9261339]
[1767949695312,0.68182655,138.55,138.5,10.73226768]
[1767949695697,0.68182655,138.55,138.51,3.51224038]
[1767949696905,0.58182655,138.54,138.5,7.2200273]
[1767949697088,7.21777054,138.55,138.52,14.8]
[1767949698308,4.09406693,138.56,138.52,15.5061066]
[1767949698309,7.79908368,138.56,138.52,15.5061066]
[1767949698513,11.31132406,138.56,138.52,15.5061066]
[1767949698685,18.14189958,138.57,138.52,15.5061066]
[1767949698686,0.1,138.57,138.53,0.7061066]
[1767949699409,0.1,138.57,138.53,4.21834698]
[1767949699625,0.1,138.57,138.54,0.7061066]
[1767949702523,0.6722661,138.57,138.53,3.51224038]
[1767949702821,0.6722661,138.57,138.53,7.21861464]
[1767949703122,0.6722661,138.57,138.53,10.73085502]
[1767949703327,0.6722661,138.57,138.53,11.43696162]
[1767949704225,0.10846484,138.56,138.52,22.0189404]
[1767949704430,0.10846484,138.56,138.53,7.21858855]
[1767949704926,0.10846484,138.56,138.52,26.23728167]
[1767949705122,0.10846484,138.56,138.52,25.53117507]
[1767949705530,0.1,138.57,138.54,0.7061066]
[1767949705734,11.40583819,138.57,138.52,22.7250326]
[1767949705906,11.40583819,138.57,138.53,0.7061066]
[1767949706904,10.82883991,138.57,138.53,0.7061066]
[1767949707310,3.61224038,138.57,138.53,7.92471649]
[1767949707606,7.31657607,138.57,138.54,0.7061066]
[1767949707932,10.82881645,138.57,138.54,0.7061066]
[1767949708518,7.31657607,138.57,138.53,0.7061066]
[1767949708737,10.82881645,138.57,138.53,0.7061066]
[1767949708925,0.1,138.57,138.53,7.92468968]
[1767949709125,3.61224038,138.57,138.53,7.92468968]
[1767949709336,0.1,138.57,138.53,7.92468968]
[1767949709549,0.1,138.57,138.53,11.43693006]
[1767949710210,0.1,138.57,138.53,10.73082346]
[1767949710410,0.1,138.57,138.54,0.7061066]
[1767949711134,0.1,138.57,138.55,0.7061066]
[1767949712213,2.24258589,138.59,138.55,0.7061066]
[1767949712437,9.45817455,138.59,138.55,0.7061066]
[1767949712631,1e-08,138.59,138.56,0.67056474]
[1767949712952,1e-08,138.59,138.58,7.88661323]
[1767949713251,9.5556727,138.64,138.58,9.45863437]
[1767949713412,0.71615783,138.63,138.59,2.24258588]
[1767949713613,0.71615783,138.63,138.6,2.24258588]
[1767949714534,0.1,138.64,138.61,0.67056474]
[1767949715353,2.34258588,138.64,138.61,0.67056474]
[1767949717245,2.34258588,138.64,138.61,0.61056474]
[1767949717445,0.1,138.64,138.61,0.61056474]
[1767949718630,0.1,138.64,138.6,2.24258588]
[1767949719256,0.1,138.64,138.6,2.91315062]
[1767949719923,0.22282397,138.62,138.58,0.67056474]
[1767949720126,2.24258588,138.61,138.56,2.91315062]
[1767949720358,2.24258588,138.61,138.56,0.67056474]
[1767949720359,2.24258588,138.6,138.56,0.67056474]
[1767949720533,10.16908766,138.61,138.56,10.13020175]
[1767949720852,10.16908766,138.61,138.56,2.91315062]
[1767949721553,7.92650178,138.61,138.56,10.13020666]
[1767949721768,7.92650178,138.61,138.57,0.67056474]
[1767949722744,7.92650178,138.61,138.57,2.91315062]
[1767949722940,7.21468923,138.61,138.57,2.91315062]
[1767949723146,7.21468923,138.61,138.58,0.67056474]
[1767949723452,7.21414559,138.62,138.58,0.67056474]
[1767949723954,9.45673147,138.62,138.58,0.67056474]
[1767949724250,9.67456627,138.62,138.58,0.67056474]
[1767949724828,7.21414559,138.62,138.58,0.67056474]
[1767949725050,7.21414559,138.62,138.59,0.67056474]
[1767949725256,22.6162381,138.63,138.59,0.67056474]
[1767949726647,2.24258588,138.61,138.57,0.67056474]
[1767949726857,9.4571871,138.61,138.57,0.67056474]
[1767949727754,9.45674067,138.62,138.58,0.66638237]
[1767949727954,0.28445316,138.62,138.57,10.12548006]
[1767949728452,0.28445316,138.63,138.58,2.90896825]
[1767949728753,0.65079965,138.63,138.6,2.24258588]
[1767949729050,0.65079965,138.63,138.6,9.45745657]
[1767949732156,0.65079965,138.63,138.57,22.61893587]
[1767949732157,0.64717282,138.61,138.57,22.61893587]
[1767949733764,7.21402309,138.62,138.58,0.66638237]
[1767949736236,9.45660897,138.62,138.58,0.66638237]
[1767949736761,2.24258588,138.61,138.58,0.66638237]
[1767949737362,2.89338553,138.61,138.57,0.66638237]
[1767949737875,2.24258588,138.6,138.57,0.66638237]
[1767949738584,9.45775148,138.6,138.56,0.66638237]
[1767949738749,2.24258588,138.6,138.57,0.66638237]
[1767949739076,7.86554651,138.61,138.57,0.66638237]
[1767949739261,2.24258588,138.6,138.57,0.66638237]
[1767949739754,10.10813239,138.61,138.57,0.66638237]
[1767949742270,13.16,138.63,138.59,0.66638237]
[1767949742478,13.16,138.63,138.59,2.90896825]
[1767949742685,7.31308748,138.64,138.6,2.92765917]
[1767949742978,7.31308748,138.64,138.61,0.68507329]
[1767949743279,0.1,138.64,138.61,0.68507329]
[1767949743684,10.1518382,138.68,138.63,0.68507329]
[1767949743858,10.1518382,138.68,138.64,0.68507329]
[1767949744978,10.1518382,138.68,138.63,0.68507329]
[1767949745165,10.1518382,138.68,138.64,0.68507329]
[1767949745979,9.45365076,138.68,138.64,0.68507329]
[1767949746175,10.14825836,138.68,138.64,0.68507329]
[1767949746372,7.90567248,138.68,138.64,0.68507329]
[1767949747182,7.21106488,138.68,138.64,0.68507329]
[1767949748361,7.21106488,138.68,138.65,0.68507329]
[1767949748974,0.69818744,138.72,138.67,0.68507329]
[1767949749299,23.3099205,138.72,138.68,0.68507329]
[1767949750181,7.90660795,138.73,138.69,0.68507329]
[1767949750369,7.20878682,138.72,138.68,0.68507329]
[1767949750980,7.54898953,138.72,138.68,0.68507329]
[1767949751174,9.79157541,138.72,138.68,0.68507329]
[1767949751382,2.34258588,138.71,138.68,0.68507329]
[1767949751882,0.1,138.71,138.68,0.68507329]
[1767949752384,2.34258588,138.71,138.68,0.68507329]
[1767949752761,0.1,138.71,138.68,0.68507329]
[1767949753777,8.00591767,138.74,138.7,0.68507329]
[1767949754880,0.79818744,138.74,138.7,0.68507329]
[1767949755078,0.1,138.74,138.7,0.68507329]
[1767949755804,7.30773023,138.74,138.7,0.68507329]
[1767949756082,0.6955976,138.73,138.69,0.68507329]
[1767949756283,2.93818348,138.73,138.69,0.68507329]
[1767949756482,0.6955976,138.73,138.69,0.68507329]
[1767949756776,2.93564517,138.71,138.66,0.68507329]
[1767949757382,2.24258588,138.7,138.66,0.68507329]
[1767949757789,0.69305929,138.71,138.66,0.68507329]
[1767949757969,2.68686546,138.7,138.66,0.68507329]
[1767949758166,7.20962802,138.71,138.67,0.68507329]
[1767949758167,9.4522139,138.71,138.67,0.68507329]
[1767949758672,7.20962802,138.71,138.67,0.68507329]
[1767949760073,10.149781,138.72,138.67,0.68507329]
[1767949760581,3.04077332,138.74,138.69,0.68507329]
[1767949760784,0.6961916,138.72,138.67,7.21096979]
[1767949760967,0.6961916,138.72,138.67,9.45355567]
[1767949761162,10.14769021,138.72,138.67,9.45355567]
[1767949761374,7.90510433,138.72,138.67,9.45355567]
[1767949761577,10.14769021,138.72,138.67,7.21096979]
[1767949761868,10.14769021,138.72,138.67,9.45355567]
[1767949762286,2.74316448,138.71,138.65,2.24258588]
[1767949762471,0.5005786,138.71,138.66,7.21185903]
[1767949762789,2.74316448,138.71,138.67,0.68507329]
[1767949762986,2.93682135,138.7,138.66,0.68507329]
[1767949763186,0.50251516,138.69,138.65,0.68507329]
[1767949763395,2.74510104,138.69,138.65,0.68507329]
[1767949763685,2.93490415,138.68,138.63,10.14087942]
[1767949763993,10.15138213,138.69,138.65,0.68507329]
[1767949765387,9.95068494,138.71,138.67,0.68507329]
[1767949766272,2.24258588,138.7,138.67,0.68507329]
[1767949767191,7.90765579,138.71,138.67,0.68507329]
[1767949767375,23.30974691,138.72,138.68,0.68507329]
[1767949767688,10.14974691,138.72,138.68,0.68507329]
[1767949768093,7.90716103,138.72,138.68,0.68507329]
[1767949768479,2.24258588,138.7,138.68,0.62507329]
[1767949768887,2.24258588,138.7,138.66,7.21178692]
[1767949770199,10.14922627,138.7,138.65,9.45477262]
[1767949770496,2.93937148,138.7,138.66,0.68507329]
[1767949770995,9.45211438,138.71,138.67,0.68507329]
[1767949771390,7.2095285,138.71,138.67,0.68507329]
[1767949771700,23.30903497,138.73,138.69,0.68507329]
[1767949771916,10.14903497,138.73,138.69,0.68507329]
[1767949772593,11.40268648,138.73,138.69,0.68507329]
[1767949772983,4.19442483,138.73,138.69,7.89537418]
[1767949773196,0.69818744,138.73,138.69,7.89537418]
[1767949773395,10.80421223,138.74,138.7,0.66873093]
[1767949773594,0.1,138.74,138.7,0.66873093]
[1767949773882,0.1,138.74,138.71,0.66873093]
[1767949774298,4.15054945,138.74,138.69,11.37526921]
[1767949774496,11.40511965,138.73,138.69,0.66873093]
[1767949774703,11.40511965,138.73,138.7,14.8]
[1767949774894,3.49623739,138.72,138.7,14.8]
[1767949775087,7.90888226,138.73,138.7,14.8]
[1767949775088,4.19667673,138.73,138.7,14.8]
[1767949775289,0.70043934,138.73,138.7,14.8]
[1767949775684,11.40497132,138.73,138.7,14.8]
[1767949775888,3.49623739,138.71,138.7,14.74]
[1767949776395,3.49623739,138.71,138.67,0.66873093]
[1767949777393,3.49623739,138.71,138.68,0.66873093]
[1767949778005,23.86547497,138.72,138.68,0.66873093]
[1767949778601,7.20923758,138.72,138.68,0.66873093]
[1767949778905,10.70547497,138.72,138.68,0.66873093]
[1767949779482,7.20923758,138.72,138.68,0.66873093]
[1767949779683,10.70471959,138.73,138.69,0.66873093]
[1767949779894,20.3684822,138.73,138.69,0.66873093]
[1767949780079,23.86471959,138.73,138.69,0.66873093]
[1767949780281,7.30794217,138.74,138.71,0.66873093]
[1767949780502,10.80417956,138.74,138.71,0.66873093]
[1767949781094,10.80417956,138.74,138.7,0.66873093]
[1767949781499,3.49623739,138.73,138.7,0.66873093]
[1767949782407,3.49623739,138.71,138.68,0.66873093]
[1767949782580,3.49623739,138.7,138.68,0.66873093]
[1767949782782,3.49623739,138.71,138.68,0.66873093]
[1767949783208,3.49623739,138.7,138.66,0.66873093]
[1767949783704,3.49623739,138.69,138.66,0.66873093]
[1767949785510,25.23298253,138.71,138.66,0.66873093]
[1767949785711,3.49623739,138.69,138.66,0.66873093]
[1767949786510,3.4662374,138.69,138.66,0.66873093]
[1767949786888,3.49623739,138.7,138.66,0.66873093]
[1767949787389,3.49623739,138.69,138.66,0.66873093]
[1767949788711,3.49623739,138.68,138.64,0.71921321]
[1767949788897,3.49623739,138.67,138.64,0.71921321]
[1767949790611,3.49623739,138.66,138.64,0.71921321]
[1767949790790,10.70766642,138.67,138.63,0.71921321]
[1767949791191,10.70731455,138.68,138.64,0.71921321]
[1767949792108,10.70661298,138.69,138.65,0.71921321]
[1767949792308,3.49623739,138.68,138.63,10.99376751]
[1767949792718,10.70710048,138.68,138.64,0.71921321]
[1767949793397,10.70710048,138.68,138.65,14.8]
[1767949795006,7.21086309,138.68,138.65,14.8]
[1767949795318,10.70710048,138.68,138.65,14.8]
[1767949797209,3.49623739,138.67,138.65,14.8]
[1767949797514,3.49623739,138.67,138.64,0.71921321]
[1767949797718,10.70710048,138.68,138.64,0.71921321]
[1767949797923,3.49623739,138.67,138.64,0.71921321]
[1767949798425,10.70710048,138.68,138.64,0.71921321]
[1767949799207,3.49623739,138.66,138.63,0.71921321]
[1767949799912,3.49623739,138.66,138.6,20.37487228]
[1767949799913,3.49623739,138.65,138.61,0.71921321]
[1767949800118,25.23797586,138.68,138.63,7.21333865]
[1767949800119,7.21086309,138.68,138.63,7.21333865]
[1767949800306,10.70710048,138.68,138.64,0.71921321]
[1767949800506,7.21086309,138.68,138.64,0.71921321]
[1767949800706,16.65623739,138.69,138.65,0.71921321]
[1767949800905,13.16,138.69,138.65,0.71921321]
[1767949801113,16.65623739,138.69,138.65,0.71921321]
[1767949801314,24.70387279,138.71,138.61,0.28432314]
[1767949801315,3.49623739,138.73,138.69,0.71921321]
[1767949801510,16.65623739,138.73,138.69,0.71921321]
[1767949801720,10.80419436,138.74,138.69,4.2154506]
[1767949801911,10.80419436,138.74,138.69,3.49623739]
[1767949801912,23.96419436,138.74,138.69,3.49623739]
[1767949802321,23.96419436,138.74,138.69,4.2154506]
[1767949802527,0.1,138.74,138.71,4.1988111]
[1767949802735,0.1,138.74,138.72,4.1988111]
[1767949802908,0.1,138.74,138.72,3.49623739]
[1767949803111,0.1,138.74,138.72,4.1988111]
[1767949803641,7.30579052,138.78,138.73,4.1988111]
[1767949803821,0.1,138.78,138.74,4.1988111]
[1767949804012,34.76835421,138.8,138.74,4.1988111]
[1767949804013,0.1,138.8,138.77,3.49623739]
[1767949804212,0.1,138.8,138.77,4.1988111]
[1767949804510,0.1,138.8,138.78,0.70257371]
[1767949804716,10.80101049,138.8,138.77,0.70257371]
[1767949804939,7.3047731,138.8,138.75,4.1988111]
[1767949805127,3.49623739,138.79,138.75,0.70257371]
[1767949805316,7.20616848,138.77,138.74,0.70257371]
[1767949805524,10.70240587,138.77,138.73,0.70257371]
[1767949806420,7.20582936,138.78,138.74,0.70257371]
[1767949806736,10.70206675,138.78,138.74,0.70257371]
[1767949806944,3.49623739,138.76,138.72,0.70257371]
[1767949807142,0.09901961,138.75,138.7,0.70257371]
[1767949807440,3.49623739,138.72,138.68,0.70257371]
[1767949807618,3.49623739,138.71,138.68,0.70257371]
[1767949808739,9.27839167,138.71,138.68,0.70257371]
[1767949809132,7.20925487,138.72,138.68,0.70257371]
[1767949809334,16.48764654,138.72,138.68,0.70257371]
[1767949811849,9.27839167,138.7,138.66,0.70257371]
[1767949812019,7.30826477,138.72,138.67,0.70257371]
[1767949812226,9.27839167,138.7,138.67,0.70257371]
[1767949813741,9.27839167,138.7,138.68,14.8]
[1767949814532,20.34916584,138.72,138.68,15.50257371]
[1767949814727,9.27839167,138.71,138.68,14.8]
[1767949814933,20.44915584,138.72,138.68,14.8]
[1767949814934,9.27839167,138.7,138.68,14.8]
[1767949815144,38.47008048,138.72,138.68,14.8]
[1767949815349,9.27839167,138.72,138.69,0.70257371]
[1767949815942,7.20842027,138.73,138.69,0.70257371]
[1767949816151,9.27839167,138.72,138.69,0.70257371]
[1767949817054,7.20899541,138.72,138.68,14.8]
[1767949817237,7.89865851,138.75,138.7,9.27839167]
[1767949818456,17.17705018,138.75,138.7,16.48815387]
[1767949818953,17.17705018,138.75,138.68,18.02631244]
[1767949818954,0.69129197,138.74,138.68,18.02631244]
[1767949819132,0.69129197,138.73,138.69,16.48834633]
[1767949819332,0.69129197,138.73,138.7,7.20970155]
[1767949819541,0.69129197,138.7,138.63,8.53084799]
[1767949819858,9.27839167,138.65,138.61,7.21445611]
[1767949820031,9.96968364,138.66,138.61,7.21445611]
[1767949820228,0.69129197,138.66,138.61,7.21445611]
[1767949820429,17.18165268,138.66,138.59,0.28432314]